bitfinex/quotes_ETHUSD_20241106
["timestamp","ask_amount","ask_price","bid_price","bid_amount"]
[1730927348956,4.1275974,2693.4,2693.2,0.49464206]
[1730927349456,4.1275974,2693.4,2693.1,0.55]
[1730927349757,4.1275974,2693.8,2693.1,1.3278]
[1730927349911,4.1275974,2693.8,2693.3,0.55]
[1730927350106,4.1275974,2693.8,2693.1,1.3278]
[1730927350107,4.1275974,2693.8,2693.1,1.82897455]
[1730927350308,4.1275974,2693.8,2693.3,0.55]
[1730927350854,4.1275974,2693.8,2693.3,1.04464206]
[1730927351035,4.1275974,2693.8,2693.5,0.55]
[1730927351834,4.1275974,2693.8,2693.3,0.49464206]
[1730927352034,4.1275974,2693.8,2693.2,0.55]
[1730927352228,4.1275974,2693.8,2693.3,0.49464206]
[1730927352734,4.1275974,2693.8,2693.3,0.99581661]
[1730927352935,4.1275974,2693.8,2693.2,0.55]
[1730927353471,4.62130714,2693.8,2693.2,0.55]
[1730927353639,4.1275974,2693.3,2693.1,0.75742302]
[1730927353848,0.7789,2693.2,2692.2,1.28354206]
[1730927354032,0.7789,2693.2,2692.4,0.50117455]
[1730927354232,0.7789,2693.2,2692.5,0.56891439]
[1730927354468,0.7789,2693.2,2692.6,0.50117455]
[1730927354648,0.7789,2693.2,2692.7,0.49464206]
[1730927354854,0.7789,2693.2,2692.7,0.99581661]
[1730927356475,4.1275974,2693.3,2692.9,0.55]
[1730927356681,5.69950082,2695.0,2692.9,0.55]
[1730927356682,4.1275974,2693.7,2693.0,0.99581661]
[1730927356893,4.1275974,2693.7,2693.1,0.55]
[1730927357177,4.1275974,2693.7,2693.1,1.54581661]
[1730927358544,4.1275974,2693.7,2693.2,0.49464206]
[1730927358951,4.1275974,2693.7,2693.3,0.55]
[1730927359147,4.1275974,2693.7,2693.3,1.6200708]
[1730927359352,4.1275974,2693.7,2692.9,0.55]
[1730927359557,0.6584,2693.6,2693.1,0.55]
[1730927361049,0.6584,2693.6,2693.1,1.05117455]
[1730927361440,4.1275974,2693.7,2693.3,0.55]
[1730927364895,4.1275974,2693.7,2693.3,1.05117455]
[1730927365341,0.6584,2693.9,2693.3,1.05117455]
[1730927365545,1.483741,2694.0,2693.5,0.55]
[1730927365745,1.483741,2694.0,2693.5,0.23150833]
[1730927365941,4.1275974,2694.1,2693.5,0.23150833]
[1730927366187,4.1275974,2693.7,2693.1,3.771967]
[1730927366393,0.6584,2694.0,2693.2,0.07425712]
[1730927366557,0.6584,2694.0,2693.2,0.93948327]
[1730927367265,0.6584,2694.0,2693.3,0.0742521]
[1730927367463,0.6584,2694.0,2693.4,0.50117455]
[1730927367656,0.6584,2694.0,2693.3,0.43830872]
[1730927367657,4.1275974,2693.5,2693.0,0.771967]
[1730927367960,0.6584,2693.4,2692.6,0.771967]
[1730927368167,4.1275974,2693.1,2692.5,0.771967]
[1730927368380,4.1275974,2693.1,2692.4,0.771967]
[1730927368695,4.1275974,2693.1,2692.5,0.23682262]
[1730927369053,4.1275974,2693.1,2692.5,1.14422256]
[1730927369296,4.1275974,2693.1,2692.5,0.90739994]
[1730927372000,0.6584,2693.0,2692.2,3.771967]
[1730927372313,0.6584,2693.0,2692.2,3.98830872]
[1730927372601,0.6584,2693.0,2692.3,0.47521087]
[1730927373693,4.1275974,2692.7,2692.3,0.72788701]
[1730927373996,4.1275974,2692.7,2692.2,0.43830872]
[1730927375508,4.1275974,2692.7,2692.1,0.55]
[1730927376186,4.1275974,2692.7,2692.0,0.55]
[1730927376775,4.1275974,2692.7,2692.0,0.98830872]
[1730927377123,4.1275974,2692.7,2692.2,0.55]
[1730927377413,4.1275974,2692.3,2691.9,0.75558964]
[1730927377560,0.6584,2692.2,2691.7,0.48881267]
[1730927377759,0.6584,2692.2,2691.7,0.92578704]
[1730927378013,1.13699974,2692.2,2691.7,0.48881267]
[1730927378212,4.1275974,2691.9,2691.3,0.48881267]
[1730927378507,0.6584,2692.2,2691.3,0.92578704]
[1730927378671,0.6584,2692.2,2691.4,0.43697437]
[1730927378986,0.6584,2692.2,2691.5,0.48881267]
[1730927379511,0.6584,2692.2,2691.6,0.55]
[1730927379709,0.6584,2692.2,2691.6,0.48881267]
[1730927379897,0.6584,2692.6,2691.7,2.23968704]
[1730927380103,0.6584,2692.6,2691.9,0.55]
[1730927381365,3.54490778,2692.4,2691.9,0.55]
[1730927382576,0.6584,2692.9,2691.9,1.03881267]
[1730927382778,0.6584,2692.9,2692.3,0.55]
[1730927382981,0.6584,2692.9,2692.3,1.03881267]
[1730927383366,1.484156,2693.3,2692.6,3.0]
[1730927383367,0.6584,2693.2,2692.6,3.0]
[1730927383612,3.54490778,2693.3,2692.7,1.87697714]
[1730927384106,0.6584,2693.5,2692.7,2.31395151]
[1730927384436,0.6584,2693.5,2692.9,0.55]
[1730927384902,3.54490778,2693.6,2692.9,1.03881267]
[1730927385104,0.6584,2693.8,2693.0,0.56306447]
[1730927385305,0.01,2694.3,2693.1,1.3139]
[1730927385306,0.6584,2694.1,2693.1,1.3139]
[1730927385473,4.77862044,2694.1,2693.1,1.3139]
[1730927385668,4.77862044,2694.1,2693.1,1.80271267]
[1730927385980,4.77862044,2694.1,2693.5,0.55]
[1730927387107,4.12022044,2693.7,2693.5,0.55]
[1730927387409,4.12022044,2693.7,2692.6,0.781967]
[1730927387410,0.6584,2693.6,2692.5,4.1579505]
[1730927387714,0.6584,2693.6,2692.5,3.43697437]
[1730927388014,0.6584,2693.6,2692.6,0.53224392]
[1730927388170,0.6584,2693.6,2692.7,0.8338962]
[1730927388678,0.6584,2693.6,2692.8,0.55]
[1730927390191,0.6584,2693.6,2692.8,1.00797933]
[1730927391681,4.12022044,2693.3,2692.8,1.00797933]
[1730927392069,4.12022044,2693.3,2692.8,0.55]
[1730927392516,4.12022044,2693.3,2692.8,1.30647997]
[1730927392807,4.12022044,2693.3,2692.8,0.55]
[1730927395172,3.39751355,2693.3,2692.8,0.55]
[1730927395412,3.39751355,2693.3,2692.8,1.00797933]
[1730927395713,3.39751355,2693.3,2692.9,0.67399888]
[1730927397545,1.1779505,2694.2,2693.0,1.37726334]
[1730927397546,6.05013794,2694.2,2693.0,1.37726334]
[1730927397722,0.01,2694.3,2693.0,1.37726334]
[1730927397723,3.31830507,2694.3,2693.1,0.55]
[1730927397908,3.31830507,2694.3,2693.3,0.55]
[1730927398264,3.31830507,2694.3,2693.7,0.55]
[1730927398265,2.10261078,2694.3,2693.7,0.55]
[1730927398920,1.28945637,2694.6,2694.1,3.0]
[1730927399123,1.28945637,2694.6,2694.2,0.85]
[1730927399325,1.28945637,2694.6,2694.2,0.55]
[1730927400249,1.28945637,2694.6,2693.9,0.55]
[1730927400455,1.28945637,2694.6,2693.8,0.55]
[1730927401254,0.1289164,2694.6,2693.8,0.55]
[1730927401412,0.1289164,2694.6,2693.8,3.55]
[1730927401607,0.1289164,2694.6,2693.9,0.47416744]
[1730927401811,0.1289164,2694.6,2693.9,0.45797933]
[1730927403252,4.12022044,2694.3,2693.2,3.0]
[1730927403416,4.12022044,2693.9,2693.2,3.43697437]
[1730927403734,4.12022044,2693.9,2693.3,0.8949537]
[1730927404308,4.12022044,2693.9,2693.4,0.55]
[1730927404732,4.12022044,2693.9,2693.4,1.00797933]
[1730927405168,4.12022044,2693.9,2693.3,0.43697437]
[1730927405584,4.12022044,2693.9,2693.1,5.32021677]
[1730927405735,4.53224248,2693.9,2693.1,5.32021677]
[1730927406074,4.12022044,2693.9,2693.2,0.45797933]
[1730927406281,4.12022044,2693.9,2693.2,3.8949537]
[1730927406839,4.12022044,2693.9,2693.3,0.55]
[1730927407144,4.12022044,2694.3,2693.4,1.7718037]
[1730927407349,4.12022044,2694.3,2693.4,0.9957037]
[1730927408361,4.12022044,2693.9,2693.4,1.72811225]
[1730927408751,4.12022044,2694.3,2693.5,4.40034945]
[1730927408954,4.12022044,2694.3,2693.7,0.55]
[1730927409273,0.1289164,2694.6,2693.8,0.9957037]
[1730927409862,0.1289164,2694.6,2694.0,0.791]
[1730927410067,0.1289164,2694.6,2694.3,3.0]
[1730927410240,0.1289164,2694.6,2694.3,0.461993]
[1730927411695,0.1289164,2694.6,2694.4,0.55]
[1730927415538,0.1289164,2694.6,2694.5,1.3605]
[1730927415739,0.1289164,2694.6,2694.5,5.3562037]
[1730927416143,0.1289164,2694.6,2694.5,2.3562037]
[1730927416385,0.1289164,2694.6,2694.5,5.93802337]
[1730927416588,0.1289164,2694.6,2694.5,2.3562037]
[1730927418392,0.1289164,2694.6,2694.5,5.78237492]
[1730927418754,0.1289164,2694.6,2694.5,5.70817635]
[1730927419285,0.1289164,2694.6,2694.5,1.8062037]
[1730927419855,0.1289164,2694.6,2694.5,2.55978866]
[1730927420097,0.1289164,2694.6,2694.5,5.81676753]
[1730927420657,0.1289164,2694.6,2694.5,2.06318257]
[1730927421054,0.1289164,2694.6,2694.5,2.10603657]
[1730927423151,0.1289164,2694.6,2694.5,2.04843417]
[1730927423367,0.1289164,2694.6,2694.5,1.7914553]
[1730927423707,0.1289164,2694.6,2694.5,5.5853553]
[1730927427280,0.1289164,2694.6,2694.5,6.09250057]
[1730927427897,3.66674329,2694.6,2694.5,0.7528976]
[1730927428209,0.1289164,2694.6,2694.1,0.4885577]
[1730927430275,0.1289164,2694.6,2694.3,0.8226]
[1730927430474,0.1289164,2694.6,2694.3,1.3111577]
[1730927430674,0.1289164,2694.6,2694.4,0.18611577]
[1730927431121,0.1289164,2694.6,2694.2,0.55]
[1730927431508,1.0,2695.7,2694.3,0.8096]
[1730927431824,4.53782689,2695.7,2694.6,0.55]
[1730927432180,0.06853018,2695.6,2694.8,0.55]
[1730927432380,0.06853018,2695.6,2694.6,3.0]
[1730927432381,0.06853018,2695.6,2695.0,3.55]
[1730927432605,0.06853018,2695.6,2695.1,1.34432022]
[1730927433277,0.06853018,2695.6,2695.1,1.92679459]
[1730927434386,0.06853018,2695.6,2695.2,0.58247437]
[1730927434596,0.06853018,2695.6,2695.3,1.34432022]
[1730927437086,0.06853018,2695.6,2695.3,1.53699968]
[1730927437280,0.06853018,2695.6,2695.4,0.58247437]
[1730927437486,0.06853018,2695.6,2695.5,1.33765356]
[1730927437903,4.53782689,2695.7,2695.5,1.92012793]
[1730927438147,1.0,2695.7,2695.5,1.92012793]
[1730927438520,0.06962162,2695.6,2695.5,1.92012793]
[1730927439602,0.06962162,2695.6,2695.5,2.67779007]
[1730927439809,0.06962162,2695.6,2695.5,5.67779007]
[1730927443236,0.06962162,2695.6,2695.5,1.92012793]
[1730927444120,0.53036647,2695.6,2694.8,0.8029]
[1730927444442,3.53782689,2695.3,2695.1,0.58247437]
[1730927444796,0.06897617,2695.2,2695.1,0.58247437]
[1730927445195,3.53782689,2695.3,2695.1,0.58247437]
[1730927445438,0.06665086,2695.2,2695.1,0.58247437]
[1730927445593,3.53782689,2695.3,2695.1,0.58247437]
[1730927445793,0.06665086,2695.2,2695.1,0.58247437]
[1730927446208,0.36044778,2695.2,2695.1,0.58247437]
[1730927446417,0.06656704,2695.2,2695.1,0.58247437]
[1730927446734,0.06656704,2695.2,2695.1,1.78015887]
[1730927446903,1.0,2695.7,2695.1,4.78015887]
[1730927447129,1.0,2695.7,2695.2,3.72188282]
[1730927447442,0.06245749,2695.6,2695.3,0.58247437]
[1730927447742,0.06245749,2695.6,2695.3,1.23015887]
[1730927447939,0.06245749,2695.6,2695.4,0.6476845]
[1730927448138,0.06245749,2695.6,2695.5,0.58247437]
[1730927448814,0.06245749,2695.6,2695.5,1.08046887]
[1730927449015,0.06245749,2695.6,2695.5,1.72815337]
[1730927449202,0.06245749,2695.6,2695.5,1.23015887]
[1730927449767,0.59375,2695.7,2695.6,0.55]
[1730927449952,0.59375,2695.7,2695.6,5.56705887]
[1730927450262,0.59375,2695.7,2695.6,5.95593186]
[1730927450563,0.59375,2695.7,2695.6,7.51425556]
[1730927451123,0.59375,2695.7,2695.6,6.74407115]
[1730927451348,0.59375,2695.7,2695.6,7.51425556]
[1730927451935,0.59375,2695.7,2695.6,6.74407115]
[1730927452269,0.59375,2695.7,2695.6,7.46788785]
[1730927452467,0.59375,2695.7,2695.6,8.23807226]
[1730927452669,0.59375,2695.7,2695.6,7.07901486]
[1730927452959,0.59375,2695.7,2695.6,7.84919927]
[1730927453170,0.59375,2695.7,2695.6,7.12538257]
[1730927453676,0.59375,2695.7,2695.6,5.80519816]
[1730927453832,0.59375,2695.7,2695.6,6.57538257]
[1730927454468,0.19705476,2695.7,2695.6,7.12789105]
[1730927454684,0.19705476,2695.7,2695.6,7.51047477]
[1730927455323,0.19705476,2695.7,2695.6,6.35519816]
[1730927455561,0.19705476,2695.7,2695.6,7.51047477]
[1730927456225,0.19705476,2695.7,2695.6,6.35519816]
[1730927456426,0.19705476,2695.7,2695.6,7.51047477]
[1730927457744,0.005,2696.0,2695.8,0.7834]
[1730927457940,0.005,2696.0,2695.9,5.0356777]
[1730927458163,0.005,2696.0,2695.9,5.58566644]
[1730927458480,0.005,2696.0,2695.9,6.41536084]
[1730927458643,0.005,2696.0,2695.9,5.86535969]
[1730927458978,3.66674329,2697.3,2695.9,6.79826532]
[1730927459282,0.05603799,2697.2,2695.9,6.79826532]
[1730927459464,3.66674329,2697.3,2696.0,0.77196744]
[1730927459782,0.05599895,2697.1,2696.1,1.2634891]
[1730927459978,0.05605973,2697.2,2696.1,1.18932554]
[1730927460284,3.66674329,2697.3,2696.1,1.18932554]
[1730927460442,3.66674329,2697.3,2696.2,0.8299]
[1730927460642,3.66674329,2697.3,2696.3,0.78439692]
[1730927460927,3.66674329,2697.3,2696.3,1.39124809]
[1730927461256,0.05611136,2697.2,2696.4,0.07416546]
[1730927461578,3.66674329,2697.3,2696.5,0.58247437]
[1730927461807,0.1289164,2697.3,2696.6,0.8299]
[1730927461936,0.1289164,2697.3,2696.3,0.20192255]
[1730927461937,0.1289164,2697.3,2696.8,0.8299]
[1730927462287,0.1289164,2697.3,2696.8,0.58247437]
[1730927462578,0.0527234,2697.2,2696.8,0.58247437]
[1730927462892,0.0527234,2697.2,2696.4,0.8177]
[1730927463043,0.0527234,2697.2,2696.5,0.58247437]
[1730927463238,0.0527234,2697.2,2696.5,0.80336918]
[1730927463539,0.1289164,2697.3,2696.5,0.80336918]
[1730927463740,0.1289164,2697.3,2696.5,1.41022035]
[1730927463947,0.05272885,2697.2,2696.5,1.41022035]
[1730927464201,0.05272885,2697.2,2696.6,0.60685117]
[1730927464351,0.05272885,2697.2,2696.7,0.58247437]
[1730927464690,0.05266806,2697.1,2696.7,1.18932554]
[1730927464871,0.1289164,2697.3,2697.2,3.0]
[1730927465266,0.18170058,2697.3,2696.7,1.18932554]
[1730927465994,0.1289164,2697.3,2696.7,1.18932554]
[1730927466178,0.1289164,2697.3,2696.8,0.60685117]
[1730927466385,0.1289164,2697.3,2696.9,0.58247437]
[1730927467360,0.1289164,2697.3,2697.2,3.53782689]
[1730927467559,0.1289164,2697.3,2697.2,1.54310823]
[1730927467857,0.1289164,2697.3,2697.2,1.18932554]
[1730927468176,0.1289164,2697.3,2697.2,2.01212554]
[1730927468375,0.1289164,2697.3,2697.2,8.54995243]
[1730927468865,0.1289164,2697.3,2697.2,9.3039267]
[1730927469068,0.1289164,2697.3,2697.2,15.07675359]
[1730927469257,0.39081756,2699.1,2697.2,15.07675359]
[1730927469258,12.07959638,2700.0,2699.9,12.92402584]
[1730927469457,10.54099199,2700.0,2699.4,0.58247437]
[1730927470209,10.54099199,2700.0,2699.0,0.01]
[1730927470497,0.0465626,2699.9,2698.8,0.01]
[1730927470657,1.1006618,2699.9,2698.8,0.01]
[1730927471065,1.1006618,2699.9,2699.0,0.01]
[1730927471373,1.1006618,2699.9,2699.3,0.01]
[1730927471567,1.1006618,2699.9,2699.4,0.58247437]
[1730927471773,1.16416538,2699.8,2699.4,0.58247437]
[1730927472100,0.04653374,2699.7,2699.0,0.01]
[1730927472303,0.04653374,2699.7,2698.8,0.01]
[1730927472304,0.04653374,2699.7,2699.3,0.01]
[1730927472491,1.16416538,2699.8,2699.3,0.01]
[1730927472696,0.04651114,2699.6,2699.1,0.58247437]
[1730927472880,1.16416538,2699.8,2699.1,0.58247437]
[1730927473079,1.16416538,2699.8,2698.8,0.01]
[1730927473080,0.04645046,2699.5,2698.8,0.01]
[1730927473279,1.16416538,2699.8,2698.8,0.01]
[1730927473595,0.04638435,2699.4,2698.8,0.01]
[1730927473900,0.04632366,2699.3,2698.8,0.01]
[1730927474111,4.70199227,2699.8,2698.6,0.58247437]
[1730927474282,4.70199227,2699.8,2698.3,0.58851784]
[1730927474283,0.04626298,2699.2,2698.3,0.58851784]
[1730927474607,0.47019923,2699.7,2698.3,0.57851784]
[1730927474608,3.53782689,2699.5,2698.3,0.57851784]
[1730927474979,0.04636531,2699.4,2698.3,0.57851784]
[1730927475921,0.04636531,2699.4,2697.4,0.8431]
[1730927475922,3.53782689,2698.9,2697.4,0.8431]
[1730927476094,3.5841922,2699.4,2697.4,0.58247437]
[1730927476095,3.53782689,2698.6,2697.4,0.58247437]
[1730927476296,3.53782689,2698.6,2697.5,0.58247437]
[1730927476506,0.04611032,2698.5,2697.5,0.58247437]
[1730927477009,3.53782689,2698.6,2697.5,0.58247437]
[1730927477383,4.10801657,2698.5,2697.5,0.58247437]
[1730927477605,0.55,2697.5,2695.8,0.01]
[1730927477771,0.55,2697.5,2695.7,0.01]
[1730927477772,4.10801657,2697.0,2695.7,0.01]
[1730927477971,4.10801657,2697.0,2695.6,0.01]
[1730927477972,0.04499946,2696.9,2695.6,0.01]
[1730927478311,0.55,2696.8,2695.6,0.48107884]
[1730927478508,0.59469368,2696.8,2695.6,0.48107884]
[1730927479003,0.59469368,2696.8,2694.9,4.10801657]
[1730927479185,0.59469368,2696.8,2695.3,0.48107884]
[1730927479572,1.07577168,2696.8,2695.3,0.48107884]
[1730927479896,0.55,2696.5,2695.3,0.48107884]
[1730927480311,0.04223904,2696.4,2694.8,0.44440223]
[1730927480516,0.55,2696.3,2694.9,0.48107884]
[1730927480820,0.59168775,2696.3,2694.9,0.48107884]
[1730927481875,0.59168775,2696.3,2694.3,1.20720223]
[1730927481876,0.59168775,2696.3,2694.4,0.48107884]
[1730927482328,0.59168775,2696.3,2694.4,0.92548107]
[1730927482505,0.59168775,2696.3,2694.5,0.21326833]
[1730927482691,0.55,2696.5,2694.6,0.48107884]
[1730927482875,0.0415833,2696.2,2694.9,4.10801657]
[1730927483081,0.481078,2696.8,2695.1,0.01]
[1730927483433,0.04152248,2696.1,2695.3,0.01]
[1730927483617,0.481078,2696.8,2695.4,3.48107884]
[1730927484120,0.481078,2696.8,2695.4,0.48107884]
[1730927485089,0.481078,2696.8,2695.1,1.23470223]
[1730927485090,0.481078,2696.8,2695.1,0.7903]
[1730927485302,0.55,2696.6,2695.1,0.7903]
[1730927485614,0.55,2696.6,2695.2,0.86010884]
[1730927485783,0.55,2696.4,2695.2,0.86010884]
[1730927485988,0.55,2696.4,2695.1,0.7803]
[1730927485989,0.55,2696.4,2694.9,0.49107884]
[1730927486185,0.04032273,2696.3,2695.0,0.48107884]
[1730927486719,0.04032273,2696.3,2695.1,3.0]
[1730927487025,0.04032273,2696.3,2695.2,0.82918672]
[1730927487381,0.55,2696.7,2695.2,0.48107884]
[1730927487578,0.481078,2696.8,2695.2,0.48107884]
[1730927487579,0.0402619,2696.2,2695.9,0.01]
[1730927487785,0.481078,2696.8,2696.1,0.02]
[1730927488031,0.481078,2696.8,2696.1,0.01]
[1730927488178,4.49424847,2698.2,2696.1,0.01]
[1730927488179,4.10801657,2697.8,2696.1,0.48107884]
[1730927488379,4.10801657,2697.8,2696.2,0.01]
[1730927488380,0.41080166,2697.7,2696.2,0.01]
[1730927488580,0.45053082,2697.7,2696.2,0.01]
[1730927488816,0.45053082,2697.7,2696.3,0.48107884]
[1730927489122,0.03972916,2697.7,2696.3,0.48107884]
[1730927489418,5.97648547,2698.2,2696.3,0.48107884]
[1730927489618,0.0396684,2697.6,2696.3,0.48107884]
[1730927489824,5.97648547,2698.2,2696.5,3.0]
[1730927490113,0.03960764,2697.5,2696.6,0.90076257]
[1730927490415,0.59764855,2698.1,2696.6,0.8266]
[1730927490416,0.03997215,2698.1,2696.6,0.8266]
[1730927490601,1.8684689,2698.2,2696.6,0.8266]
[1730927490602,0.03940362,2697.4,2696.6,0.8266]
[1730927490962,0.24661175,2698.0,2696.6,0.8266]
[1730927491281,0.03970741,2697.9,2696.6,0.8266]
[1730927492986,0.03970741,2697.9,2696.8,3.0]
[1730927493414,0.03970741,2697.9,2696.8,0.38266]
[1730927493588,0.03970741,2697.9,2696.8,3.0]
[1730927494090,0.03970741,2697.9,2696.6,0.8266]
[1730927495440,0.03970741,2697.9,2696.6,0.8166]
[1730927495748,0.55,2697.8,2696.2,1.23200223]
[1730927495937,0.58964666,2697.8,2696.2,1.22200223]
[1730927496105,0.58964666,2697.8,2696.2,1.23200223]
[1730927496446,0.58964666,2697.8,2696.2,1.71308107]
[1730927497108,0.58964666,2697.8,2696.2,1.70308107]
[1730927497320,4.10801657,2697.6,2695.9,0.44440223]
[1730927497551,0.96080166,2697.5,2695.8,0.7776]
[1730927497750,1.00026605,2697.5,2695.8,0.7776]
[1730927498119,0.45026605,2697.5,2695.9,0.48107884]
[1730927498321,0.45026605,2697.5,2695.9,0.92548107]
[1730927498536,0.45582826,2697.4,2695.9,1.50859083]
[1730927499724,0.03959451,2697.3,2695.9,1.50859083]
[1730927500527,0.03959451,2697.3,2695.9,1.0641886]
[1730927500714,0.03959451,2697.3,2696.2,3.0]
[1730927500930,0.03959451,2697.3,2695.9,0.48107884]
[1730927501107,4.10801657,2697.2,2695.5,0.44440223]
[1730927501311,0.41476111,2697.1,2695.6,0.47561811]
[1730927501549,0.41476111,2697.1,2695.4,2.06487169]
[1730927501550,0.55,2697.0,2695.4,2.06487169]
[1730927501756,4.10801657,2696.8,2695.4,0.8307]
[1730927501913,4.10801657,2696.8,2694.9,4.11801657]
[1730927501914,4.10801657,2696.8,2695.0,1.26370223]
[1730927502110,0.03942948,2696.7,2695.0,1.74478107]
[1730927502321,0.45023114,2696.7,2695.1,0.63438765]
[1730927503153,0.55,2696.6,2695.0,1.74478107]
[1730927503489,0.58936867,2696.6,2695.0,1.74478107]
[1730927504518,0.58936867,2696.6,2695.0,1.30037884]
[1730927504820,0.55,2696.3,2694.7,1.21990223]
[1730927505017,0.03936867,2696.6,2694.3,0.7755]
[1730927505018,0.55,2695.9,2694.3,0.7755]
[1730927505466,0.03864134,2695.8,2694.3,0.7755]
[1730927505763,0.03858049,2695.7,2694.5,4.10801657]
[1730927506139,0.55,2696.3,2694.5,4.10801657]
[1730927506140,0.55,2696.3,2694.6,3.0]
[1730927506339,0.03851964,2695.6,2694.6,3.0]
[1730927506541,0.41080166,2696.7,2694.9,4.10801657]
[1730927506791,0.03845879,2695.5,2695.0,3.0]
[1730927507083,0.55,2696.7,2695.0,3.0]
[1730927507378,0.03839793,2695.4,2695.0,3.0]
[1730927507577,0.55,2696.7,2695.0,3.0]
[1730927507940,0.55,2696.5,2695.0,3.0]
[1730927508281,0.55,2696.5,2695.1,0.76149287]
[1730927508576,0.03900631,2696.4,2695.1,0.76149287]
[1730927508942,0.55,2696.7,2695.1,0.76149287]
[1730927509137,0.0376158,2696.3,2695.1,0.76149287]
[1730927509368,0.55,2696.7,2694.9,0.50691217]
[1730927509557,0.03722121,2696.2,2694.9,0.50691217]
[1730927509865,0.55,2696.7,2694.6,3.80334976]
[1730927510043,0.55,2696.7,2694.5,4.10801657]
[1730927510044,0.55,2696.0,2694.5,0.50691217]
[1730927510238,0.55,2696.0,2694.1,4.92021657]
[1730927510239,4.65801657,2696.0,2694.1,0.50691217]
[1730927510443,0.55,2695.8,2693.9,0.50691217]
[1730927510676,0.03677198,2695.7,2693.9,0.9513144]
[1730927510881,0.55,2695.6,2693.9,0.9513144]
[1730927511650,0.58670565,2695.6,2693.9,0.9513144]
[1730927512484,0.55,2695.6,2694.1,4.10801657]
[1730927512786,0.03651613,2695.5,2694.2,0.41080166]
[1730927513088,0.55,2695.4,2694.2,0.41080166]
[1730927513259,0.55,2695.4,2693.7,7.91021657]
[1730927513619,0.55,2695.2,2693.9,0.44440223]
[1730927514025,0.03627267,2695.1,2693.9,0.44440223]
[1730927514408,0.55,2695.2,2693.9,0.44440223]
[1730927514719,0.03627267,2695.1,2693.9,0.8935644]
[1730927514920,0.55,2695.7,2693.9,0.8935644]
[1730927515132,0.0362118,2695.0,2693.9,0.8935644]
[1730927515433,0.55,2695.5,2693.9,0.8935644]
[1730927515919,0.55,2695.3,2693.9,0.8935644]
[1730927516283,0.03633355,2695.2,2693.9,0.8935644]
[1730927518129,0.03633355,2695.2,2693.9,0.44440223]
[1730927518299,0.03633355,2695.2,2694.0,3.0]
[1730927518634,0.55,2695.1,2693.6,0.45440223]
[1730927518844,0.55,2695.1,2693.5,0.0504514]
[1730927519156,0.55,2694.9,2693.5,0.58731243]
[1730927519638,0.03588742,2694.8,2693.5,0.58731243]
[1730927520309,0.55,2694.7,2693.5,0.0504514]
[1730927520643,0.58582653,2694.7,2693.5,0.0504514]
[1730927521745,0.55,2694.5,2693.5,0.0504514]
[1730927522249,0.55,2694.3,2693.5,0.0504514]
[1730927522652,0.55,2694.1,2693.5,0.0504514]
[1730927523010,0.03742099,2694.0,2693.5,0.0504514]
[1730927525363,0.55,2693.9,2693.5,0.0504514]
[1730927525518,0.59011854,2693.9,2693.5,0.0504514]
[1730927526333,4.48311854,2693.9,2693.5,0.0504514]
[1730927526519,0.55,2693.7,2693.5,0.0504514]
[1730927526972,0.59704018,2693.6,2693.5,0.0504514]
[1730927527270,0.55,2693.5,2691.8,0.8274]
[1730927527416,4.443,2693.5,2691.8,1.23914229]
[1730927527617,0.55,2693.3,2691.8,2.26270063]
[1730927527818,0.55,2693.3,2691.9,0.85614452]
[1730927528020,0.55,2693.1,2691.9,0.85614452]
[1730927528249,0.55,2693.1,2691.9,0.41174229]
[1730927528499,4.55632842,2693.8,2691.9,0.86371818]
[1730927528500,0.55,2692.9,2691.9,0.86371818]
[1730927528698,0.44831185,2693.8,2692.0,0.44440223]
[1730927528847,0.44831185,2693.8,2692.6,3.0]
[1730927529046,0.44831185,2693.8,2692.1,0.41174229]
[1730927529047,0.38682164,2694.1,2693.0,4.10801657]
[1730927529374,0.38682164,2694.1,2693.1,3.0]
[1730927529766,3.893,2694.7,2693.1,3.0]
[1730927529962,0.06127538,2694.0,2693.1,3.0]
[1730927530287,0.06147027,2693.9,2693.1,3.0]
[1730927530586,0.55,2694.4,2693.2,0.75197589]
[1730927530789,0.06135603,2693.8,2693.3,0.7527]
[1730927530962,5.376894,2694.8,2693.3,0.7527]
[1730927531301,0.57636357,2694.7,2693.3,0.7527]
[1730927531459,0.63874749,2694.7,2693.3,0.7627]
[1730927532091,0.63874749,2694.7,2693.5,3.0]
[1730927532250,0.06238392,2694.7,2693.5,3.0]
[1730927533154,1.483894,2694.8,2693.5,3.0]
[1730927533369,0.05067696,2694.6,2693.5,3.0]
[1730927533588,1.483894,2694.8,2693.5,3.0]
[1730927533589,0.0507683,2694.7,2693.5,3.0]
[1730927533785,0.05058561,2694.5,2693.5,3.0]
[1730927533962,0.55,2694.5,2693.6,0.75624188]
[1730927534290,0.05057666,2694.4,2693.6,0.75624188]
[1730927534986,1.483894,2694.8,2693.6,0.75624188]
[1730927534987,0.55,2694.7,2693.6,0.75624188]
[1730927536990,0.55,2694.7,2693.5,3.0]
[1730927537197,0.55,2694.5,2693.3,0.7527]
[1730927537554,0.55,2694.3,2693.3,0.7527]
[1730927537784,0.55,2694.5,2693.3,0.7527]
[1730927537991,0.05040628,2694.2,2693.3,0.7527]
[1730927538187,0.55,2694.7,2693.3,1.12897]
[1730927538699,0.55,2694.5,2693.0,0.7816]
[1730927538986,0.55,2694.5,2692.9,0.44440223]
[1730927539187,0.55,2694.5,2692.7,0.7816]
[1730927539188,0.55,2694.3,2692.7,0.7816]
[1730927539693,0.55,2694.1,2692.7,0.7816]
[1730927539991,0.55,2693.9,2692.7,0.7816]
[1730927540200,0.55,2693.9,2692.7,1.35717611]
[1730927540493,0.55,2693.7,2692.7,4.35717611]
[1730927540704,0.55,2693.7,2692.7,3.7816]
[1730927541058,0.55,2693.7,2692.8,0.44440223]
[1730927542096,0.55,2693.7,2692.7,3.7816]
[1730927542995,1.483894,2694.8,2693.1,3.0]
[1730927543173,1.483894,2694.8,2693.2,1.99570389]
[1730927543642,0.38643019,2694.7,2693.2,1.99570389]
[1730927543769,0.38643019,2694.7,2693.4,0.01]
[1730927543957,1.483894,2694.8,2693.7,0.8305]
[1730927544157,1.483894,2694.8,2693.8,0.44440223]
[1730927544596,1.483894,2694.8,2693.9,3.0]